[Event "Championnat d'Europe de Blitz"]
[Date "2024.12.09"]
[White "Bernadskiy, Vitaliy"]
[Black "Nahkur, Madis"]
[WhiteElo "2546"]
[BlackElo "2119"]
[Round "1.45"]
[Result "1-0"]
[TimeControl "180+2"]

1. e4 {[%emt 00:30:27] [%clk 00:03:03]} e5 {[%clk 00:03:04]} 2. Nc3 {[%emt
00:00:01] [%clk 00:03:03]} Nc6 {[%emt 00:00:01] [%clk 00:03:04]} 3. Bb5 {[%emt
00:00:02] [%clk 00:03:03]} Nf6 {[%emt 00:00:06] [%clk 00:03:00]} 4. Nf3 {[%emt
00:00:03] [%clk 00:03:02]} d6 {[%emt 00:00:10] [%clk 00:02:52]} 5. d4 {[%emt
00:00:04] [%clk 00:03:00]} exd4 {[%emt 00:00:02] [%clk 00:02:52]} 6. Nxd4 {[%emt
00:00:02] [%clk 00:03:00]} Bd7 {[%emt 00:00:02] [%clk 00:02:52]} 7. O-O {[%emt
00:00:04] [%clk 00:02:58]} Be7 {[%emt 00:00:01] [%clk 00:02:53]} 8. Nxc6 {[%emt
00:00:22] [%clk 00:02:38]} Bxc6 {[%emt 00:00:31] [%clk 00:02:24]} 9. Bxc6+
{[%emt 00:00:07] [%clk 00:02:33]} bxc6 {[%emt 00:00:01] [%clk 00:02:25]} 10. Qf3
{[%emt 00:00:02] [%clk 00:02:34]} O-O {[%emt 00:00:04] [%clk 00:02:23]} 11. e5
{[%emt 00:00:13] [%clk 00:02:23]} dxe5 {[%emt 00:00:02] [%clk 00:02:22]} 12.
Qxc6 {[%emt 00:00:03] [%clk 00:02:21]} Rb8 {[%emt 00:00:17] [%clk 00:02:08]} 13.
Rd1 {[%emt 00:00:03] [%clk 00:02:20]} Bd6 {[%emt 00:00:40] [%clk 00:01:30]} 14.
b3 {[%emt 00:00:38] [%clk 00:01:44]} Qe8 {[%emt 00:00:21] [%clk 00:01:11]} 15.
Qxe8 {[%emt 00:00:12] [%clk 00:01:34]} Rfxe8 {[%emt 00:00:01] [%clk 00:01:12]}
16. Bg5 {[%emt 00:00:01] [%clk 00:01:34]} Re6 {[%emt 00:00:21] [%clk 00:00:54]}
17. Bxf6 {[%emt 00:00:05] [%clk 00:01:31]} Rxf6 {[%emt 00:00:14] [%clk
00:00:42]} 18. Ne4 {[%emt 00:00:02] [%clk 00:01:31]} Re6 {[%emt 00:00:02] [%clk
00:00:42]} 19. Rd5 {[%emt 00:00:30] [%clk 00:01:04]} Be7 {[%emt 00:00:37] [%clk
00:00:07]} 20. Rad1 {[%emt 00:00:09] [%clk 00:00:56]} h6 {[%emt 00:00:06] [%clk
00:00:03]} 21. f3 {[%emt 00:00:10] [%clk 00:00:47]} g6 {[%clk 00:00:05]} 22. Kf1
{[%emt 00:00:03] [%clk 00:00:46]} Kg7 {[%clk 00:00:06]} 23. Rd7 {[%emt 00:00:05]
[%clk 00:00:43]} Bb4 {[%emt 00:00:02] [%clk 00:00:06]} 24. Rxc7 {[%emt 00:00:05]
[%clk 00:00:40]} a5 {[%clk 00:00:08]} 25. Rdd7 {[%emt 00:00:02] [%clk 00:00:40]}
Rf8 {[%clk 00:00:09]} 26. c3 {[%emt 00:00:02] [%clk 00:00:39]} Ba3 {[%emt
00:00:02] [%clk 00:00:09]} 27. Ke2 {[%emt 00:00:12] [%clk 00:00:29]} g5 {[%clk
00:00:11]} 28. g4 {[%clk 00:00:30]} Kg6 {[%emt 00:00:02] [%clk 00:00:12]} 29.
Ng3 {[%emt 00:00:07] [%clk 00:00:25]} Rf6 {[%emt 00:00:07] [%clk 00:00:07]} 30.
Rd5 {[%emt 00:00:08] [%clk 00:00:19]} Re6 {[%emt 00:00:02] [%clk 00:00:07]} 31.
Rxa5 {[%emt 00:00:03] [%clk 00:00:17]} Bc1 {[%emt 00:00:01] [%clk 00:00:08]} 32.
Rca7 {[%emt 00:00:04] [%clk 00:00:14]} Rd8 {[%emt 00:00:02] [%clk 00:00:09]} 33.
Ne4 {[%emt 00:00:02] [%clk 00:00:15]} Bf4 {[%emt 00:00:01] [%clk 00:00:10]} 34.
h3 {[%emt 00:00:01] [%clk 00:00:15]} Rc6 {[%emt 00:00:02] [%clk 00:00:10]} 35.
R5a6 {[%emt 00:00:01] [%clk 00:00:16]} Rxa6 {[%emt 00:00:04] [%clk 00:00:08]}
36. Rxa6+ {[%emt 00:00:01] [%clk 00:00:17]} Kg7 {[%emt 00:00:02] [%clk
00:00:08]} 37. Nd6 {[%emt 00:00:02] [%clk 00:00:17]} Rd7 {[%emt 00:00:01]} 38.
Nf5+ Kh7 {[%emt 00:00:02] [%clk 00:00:06]} 39. Rxh6+ {[%emt 00:00:03] [%clk
00:00:17]} Kg8 {[%clk 00:00:07]} 40. Rd6 {[%emt 00:00:02] [%clk 00:00:16]} Ra7
{[%emt 00:00:02] [%clk 00:00:09]} 41. a4 {[%emt 00:00:01] [%clk 00:00:17]} Rc7
{[%clk 00:00:10]} 42. Kd3 {[%emt 00:00:03] [%clk 00:00:15]} Rb7 {[%emt 00:00:04]
[%clk 00:00:09]} 43. Rd8+ {[%emt 00:00:03] [%clk 00:00:14]} Kh7 {[%emt 00:00:01]
[%clk 00:00:10]} 44. b4 {[%emt 00:00:02] [%clk 00:00:15]} Rc7 {[%emt 00:00:01]
[%clk 00:00:10]} 45. a5 {[%emt 00:00:02] [%clk 00:00:15]} Rb7 {[%emt 00:00:09]
[%clk 00:00:03]} 46. a6 {[%emt 00:00:02] [%clk 00:00:15]} Rc7 {[%emt 00:00:02]
[%clk 00:00:03]} 47. b5 {[%clk 00:00:16]} 1-0

[Site "Europe Echecs"]

[Event "Championnat d'Europe de Blitz"]
[Date "2024.12.09"]
[White "Trajkovski, Mile"]
[Black "Kalezic, Blazo"]
[WhiteElo "1910"]
[BlackElo "2382"]
[Round "1.46"]
[Result "0-1"]
[TimeControl "180+2"]

1. e4 {[%clk 00:03:02]} e6 {[%clk 00:03:03]} 2. Nf3 {[%emt 00:00:02] [%clk
00:03:03]} d5 {[%emt 00:00:01] [%clk 00:03:04]} 3. Nc3 {[%clk 00:03:04]} Nf6
{[%emt 00:00:02] [%clk 00:03:04]} 4. e5 {[%emt 00:00:01] [%clk 00:03:05]} Nfd7
{[%clk 00:03:05]} 5. d4 {[%clk 00:03:06]} c5 {[%clk 00:03:06]} 6. Bb5 {[%emt
00:00:04] [%clk 00:03:03]} Nc6 {[%emt 00:00:05] [%clk 00:03:04]} 7. Bxc6 {[%emt
00:00:14] [%clk 00:02:51]} bxc6 {[%emt 00:00:02] [%clk 00:03:04]} 8. O-O {[%emt
00:00:28] [%clk 00:02:24]} h6 {[%emt 00:00:22] [%clk 00:02:45]} 9. Re1 {[%emt
00:00:06] [%clk 00:02:20]} Be7 {[%emt 00:00:26] [%clk 00:02:21]} 10. Ne2 {[%emt
00:00:05] [%clk 00:02:17]} cxd4 {[%emt 00:00:04] [%clk 00:02:19]} 11. Qxd4
{[%emt 00:00:19] [%clk 00:01:59]} c5 {[%emt 00:00:07] [%clk 00:02:15]} 12. Qg4
{[%emt 00:00:01] [%clk 00:02:00]} g5 {[%emt 00:00:09] [%clk 00:02:08]} 13. Ng3
{[%emt 00:00:18] [%clk 00:01:44]} Bb7 {[%emt 00:00:13] [%clk 00:01:58]} 14. Nh5
{[%emt 00:00:02] [%clk 00:01:43]} Qb6 {[%emt 00:00:09] [%clk 00:01:51]} 15. Ng7+
{[%emt 00:00:33] [%clk 00:01:12]} Kd8 {[%emt 00:00:12] [%clk 00:01:40]} 16. a4
{[%emt 00:00:09] [%clk 00:01:06]} a5 {[%emt 00:00:03] [%clk 00:01:39]} 17. Bd2
{[%emt 00:00:11] [%clk 00:00:56]} Kc7 {[%emt 00:00:22] [%clk 00:01:18]} 18. c3
{[%emt 00:00:08] [%clk 00:00:53]} Qc6 {[%emt 00:00:41] [%clk 00:00:39]} 19. b4
{[%emt 00:00:12] [%clk 00:00:42]} Nb6 {[%emt 00:00:10] [%clk 00:00:31]} 20. b5
{[%emt 00:00:28] [%clk 00:00:16]} Qd7 {[%emt 00:00:04] [%clk 00:00:30]} 0-1

[Site "Europe Echecs"]

[Event "Championnat d'Europe de Blitz"]
[Date "2024.12.09"]
[White "Pancevski, Filip"]
[Black "Dilji, Emell"]
[WhiteElo "2420"]
[BlackElo "1830"]
[Round "1.47"]
[Result "1-0"]
[TimeControl "180+2"]

1. e4 {[%emt 00:00:04] [%clk 00:03:02]} e5 {[%clk 00:03:04]} 2. Nf3 {[%emt
00:00:01] [%clk 00:03:02]} Nc6 {[%emt 00:00:01] [%clk 00:03:05]} 3. Bc4 {[%emt
00:00:02] [%clk 00:03:02]} Nf6 {[%emt 00:00:09] [%clk 00:02:58]} 4. d3 {[%emt
00:00:01] [%clk 00:03:03]} h6 {[%emt 00:00:01] [%clk 00:02:58]} 5. a4 {[%emt
00:00:08] [%clk 00:02:57]} Bc5 {[%emt 00:00:07] [%clk 00:02:53]} 6. c3 {[%emt
00:00:02] [%clk 00:02:57]} a5 {[%emt 00:00:03] [%clk 00:02:53]} 7. O-O {[%emt
00:00:07] [%clk 00:02:51]} O-O {[%emt 00:00:03] [%clk 00:02:52]} 8. Nbd2 {[%emt
00:00:06] [%clk 00:02:48]} d6 {[%emt 00:00:02] [%clk 00:02:53]} 9. h3 {[%emt
00:00:01] [%clk 00:02:48]} Be6 {[%emt 00:00:09] [%clk 00:02:46]} 10. Re1 {[%emt
00:00:13] [%clk 00:02:36]} Bxc4 {[%emt 00:00:06] [%clk 00:02:43]} 11. Nxc4
{[%emt 00:00:02] [%clk 00:02:36]} Re8 {[%emt 00:00:12] [%clk 00:02:32]} 12. Qb3
{[%emt 00:00:42] [%clk 00:01:56]} Rb8 {[%emt 00:00:13] [%clk 00:02:22]} 13. Qb5
{[%emt 00:00:12] [%clk 00:01:46]} Bb6 {[%emt 00:00:22]} 14. Nxb6 {[%emt
00:00:08] [%clk 00:01:38]} cxb6 {[%emt 00:00:01] [%clk 00:02:05]} 15. Be3 {[%emt
00:00:02] [%clk 00:01:38]} d5 {[%emt 00:00:21] [%clk 00:01:46]} 16. Bxb6 {[%emt
00:00:08] [%clk 00:01:32]} Qd7 {[%emt 00:00:01] [%clk 00:01:47]} 17. Bxa5 {[%emt
00:00:09] [%clk 00:01:25]} dxe4 {[%emt 00:00:24] [%clk 00:01:25]} 18. dxe4
{[%emt 00:00:01] [%clk 00:01:25]} Nxa5 {[%emt 00:00:11] [%clk 00:01:16]} 19.
Qxa5 {[%emt 00:00:03] [%clk 00:01:25]} b6 {[%emt 00:00:18] [%clk 00:01:00]} 20.
Qb5 {[%emt 00:00:02] [%clk 00:01:25]} Qc7 {[%emt 00:00:05] [%clk 00:00:57]} 21.
Rad1 {[%emt 00:00:01] [%clk 00:01:26]} Rbd8 {[%emt 00:00:10] [%clk 00:00:50]}
22. Rxd8 {[%emt 00:00:01] [%clk 00:01:26]} Rxd8 {[%emt 00:00:12] [%clk
00:00:40]} 23. Qxe5 {[%emt 00:00:05] [%clk 00:01:22]} Qc4 {[%emt 00:00:14] [%clk
00:00:28]} 24. Qb5 {[%emt 00:00:04] [%clk 00:01:21]} Qa2 {[%emt 00:00:04] [%clk
00:00:26]} 25. Qxb6 {[%emt 00:00:14] [%clk 00:01:09]} Re8 {[%emt 00:00:02] [%clk
00:00:26]} 26. Qb5 {[%emt 00:00:17] [%clk 00:00:54]} Re6 {[%emt 00:00:17] [%clk
00:00:12]} 27. Nd4 {[%emt 00:00:10] [%clk 00:00:45]} Re7 {[%emt 00:00:10] [%clk
00:00:04]} 28. Nf5 {[%emt 00:00:09] [%clk 00:00:38]} Re5 {[%emt 00:00:02] [%clk
00:00:04]} 29. Qxe5 {[%emt 00:00:03] [%clk 00:00:37]} 1-0

[Site "Europe Echecs"]

[Event "Championnat d'Europe de Blitz"]
[Date "2024.12.09"]
[White "Eftovski, Mateo"]
[Black "Gavrilescu, David"]
[WhiteElo "2029"]
[BlackElo "2549"]
[Round "1.48"]
[Result "0-1"]
[TimeControl "180+2"]

1. d4 {[%clk 00:03:03]} d5 {[%emt 00:00:04] [%clk 00:03:03]} 2. c4 {[%clk
00:03:04]} e6 {[%clk 00:03:04]} 3. Nc3 {[%emt 00:00:03] [%clk 00:03:03]} Nf6
{[%emt 00:00:01] [%clk 00:03:05]} 4. Bf4 {[%emt 00:00:01] [%clk 00:03:04]} Bb4
{[%emt 00:00:07] [%clk 00:03:00]} 5. e3 {[%emt 00:00:01] [%clk 00:03:05]} O-O
{[%emt 00:00:02] [%clk 00:02:59]} 6. Nf3 {[%emt 00:00:02] [%clk 00:03:05]} c5
{[%emt 00:00:07] [%clk 00:02:55]} 7. Bd3 {[%emt 00:00:07] [%clk 00:03:00]} cxd4
{[%emt 00:00:10] [%clk 00:02:47]} 8. exd4 {[%emt 00:00:01] [%clk 00:03:01]} dxc4
{[%emt 00:00:02] [%clk 00:02:47]} 9. Bxc4 {[%clk 00:03:02]} b6 {[%clk 00:02:48]}
10. O-O {[%emt 00:00:13] [%clk 00:02:51]} Bb7 {[%clk 00:02:49]} 11. a3 {[%emt
00:00:19] [%clk 00:02:34]} Bxc3 {[%emt 00:00:05] [%clk 00:02:46]} 12. bxc3
{[%emt 00:00:02] [%clk 00:02:34]} Nc6 {[%emt 00:00:05] [%clk 00:02:42]} 13. Bd3
{[%emt 00:00:10] [%clk 00:02:26]} Rc8 {[%emt 00:00:03] [%clk 00:02:41]} 14. Qe2
{[%emt 00:00:14] [%clk 00:02:14]} h6 {[%emt 00:00:06] [%clk 00:02:38]} 15. Bd2
{[%emt 00:00:04] [%clk 00:02:12]} Ne7 {[%emt 00:00:04] [%clk 00:02:36]} 16. Ne5
{[%emt 00:00:08] [%clk 00:02:06]} Nf5 {[%emt 00:00:18] [%clk 00:02:20]} 17. f4
{[%emt 00:00:31] [%clk 00:01:38]} Qd5 {[%emt 00:00:22] [%clk 00:01:59]} 18. Rae1
{[%emt 00:00:33] [%clk 00:01:07]} Nd6 {[%emt 00:00:23] [%clk 00:01:38]} 19. f5
{[%emt 00:00:40] [%clk 00:00:28]} exf5 {[%emt 00:00:17] [%clk 00:01:24]} 20.
Bxf5 {[%emt 00:00:02] [%clk 00:00:28]} Nxf5 {[%emt 00:00:03] [%clk 00:01:23]}
21. Rxf5 {[%clk 00:00:29]} Ne4 {[%emt 00:00:12] [%clk 00:01:13]} 22. Bxh6 {[%emt
00:00:06] [%clk 00:00:25]} gxh6 {[%emt 00:00:18] [%clk 00:00:57]} 23. Ng4 {[%clk
00:00:26]} Qe6 {[%emt 00:00:06] [%clk 00:00:53]} 24. Qe3 {[%emt 00:00:12] [%clk
00:00:16]} Kg7 {[%emt 00:00:13] [%clk 00:00:42]} 25. Qf4 {[%emt 00:00:06] [%clk
00:00:12]} Rxc3 {[%emt 00:00:09] [%clk 00:00:35]} 26. Re5 {[%emt 00:00:05] [%clk
00:00:08]} Qg6 {[%emt 00:00:02] [%clk 00:00:35]} 27. Ne3 {[%emt 00:00:05] [%clk
00:00:05]} Ng5 {[%emt 00:00:09] [%clk 00:00:28]} 28. Nf5+ {[%emt 00:00:02] [%clk
00:00:05]} Kh7 {[%clk 00:00:30]} 29. R5e3 {[%emt 00:00:04] [%clk 00:00:03]} Nh3+
{[%emt 00:00:02] [%clk 00:00:29]} 30. Rxh3 {[%emt 00:00:02] [%clk 00:00:03]}
Qxg2# {[%clk 00:00:30]} 0-1

[Site "Europe Echecs"]

[Event "Championnat d'Europe de Blitz"]
[Date "2024.12.09"]
[White "Guliyev, Namig"]
[Black "Marttinen, Jussi"]
[WhiteElo "2484"]
[BlackElo "1946"]
[Round "1.49"]
[Result "1-0"]
[TimeControl "180+2"]

1. e4 c6 {[%clk 00:03:03]} 2. d4 {[%clk 00:03:03]} d5 {[%clk 00:03:05]} 3. exd5
{[%emt 00:00:02] [%clk 00:03:04]} cxd5 {[%emt 00:00:01] [%clk 00:03:05]} 4. Bd3
{[%emt 00:00:01] [%clk 00:03:04]} Nf6 {[%emt 00:00:02] [%clk 00:03:06]} 5. c3
{[%emt 00:00:03] [%clk 00:03:03]} Bg4 {[%emt 00:00:24] [%clk 00:02:44]} 6. Qb3
{[%emt 00:00:02] [%clk 00:03:03]} Qb6 {[%emt 00:00:03] [%clk 00:02:43]} 7. Qxb6
{[%emt 00:00:05] [%clk 00:03:00]} axb6 {[%clk 00:02:44]} 8. Bf4 {[%emt 00:00:03]
[%clk 00:02:59]} Nc6 {[%emt 00:00:07] [%clk 00:02:39]} 9. Nd2 {[%emt 00:00:11]
[%clk 00:02:49]} e6 {[%emt 00:00:03] [%clk 00:02:39]} 10. Bc7 {[%emt 00:00:03]
[%clk 00:02:47]} Be7 {[%emt 00:00:15] [%clk 00:02:27]} 11. Bxb6 {[%emt 00:00:08]
[%clk 00:02:41]} O-O {[%emt 00:00:02] [%clk 00:02:27]} 12. Bc7 {[%emt 00:00:05]
[%clk 00:02:38]} Rfc8 {[%emt 00:00:09] [%clk 00:02:20]} 13. Bg3 {[%emt 00:00:02]
[%clk 00:02:38]} Rd8 {[%emt 00:00:07] [%clk 00:02:15]} 14. Ngf3 {[%emt 00:00:02]
[%clk 00:02:37]} Bd6 {[%emt 00:00:06] [%clk 00:02:11]} 15. Bxd6 {[%emt 00:00:04]
[%clk 00:02:36]} Rxd6 {[%clk 00:02:12]} 16. Ne5 {[%emt 00:00:02] [%clk
00:02:36]} Bf5 {[%emt 00:00:06] [%clk 00:02:08]} 17. Bxf5 {[%emt 00:00:04] [%clk
00:02:34]} exf5 {[%emt 00:00:01] [%clk 00:02:09]} 18. O-O {[%emt 00:00:04] [%clk
00:02:32]} Ne4 {[%emt 00:00:02] [%clk 00:02:09]} 19. Nb3 {[%emt 00:00:06] [%clk
00:02:28]} Nxe5 {[%emt 00:00:09] [%clk 00:02:02]} 20. dxe5 {[%emt 00:00:02]
[%clk 00:02:28]} Re6 {[%emt 00:00:02] [%clk 00:02:02]} 21. f3 {[%emt 00:00:02]
[%clk 00:02:27]} Rxe5 {[%emt 00:00:11] [%clk 00:01:53]} 22. fxe4 {[%emt
00:00:03] [%clk 00:02:27]} fxe4 {[%clk 00:01:54]} 23. Nd4 {[%emt 00:00:03] [%clk
00:02:26]} g6 {[%emt 00:00:03] [%clk 00:01:53]} 24. Rf6 {[%emt 00:00:03] [%clk
00:02:25]} Rae8 {[%emt 00:00:13] [%clk 00:01:43]} 25. Raf1 {[%emt 00:00:07]
[%clk 00:02:20]} R8e7 {[%clk 00:01:44]} 26. g3 {[%emt 00:00:08] [%clk 00:02:14]}
h5 {[%clk 00:01:45]} 27. a4 {[%emt 00:00:02] [%clk 00:02:13]} Kg7 {[%emt
00:00:03] [%clk 00:01:45]} 28. Rb6 {[%emt 00:00:23] [%clk 00:01:51]} Rg5 {[%emt
00:00:10] [%clk 00:01:38]} 29. a5 {[%emt 00:00:08] [%clk 00:01:45]} h4 {[%clk
00:01:39]} 30. Kg2 {[%emt 00:00:01] [%clk 00:01:46]} hxg3 {[%emt 00:00:02] [%clk
00:01:39]} 31. hxg3 {[%emt 00:00:02] [%clk 00:01:46]} f5 {[%emt 00:00:17] [%clk
00:01:24]} 32. Ne6+ {[%emt 00:00:02] [%clk 00:01:45]} Kh6 {[%emt 00:00:02] [%clk
00:01:24]} 33. Nxg5 {[%emt 00:00:21] [%clk 00:01:27]} Kxg5 {[%emt 00:00:01]
[%clk 00:01:24]} 34. Rd6 {[%emt 00:00:08] [%clk 00:01:22]} Re5 {[%emt 00:00:04]
[%clk 00:01:22]} 35. Rd1 {[%emt 00:00:06] [%clk 00:01:17]} d4 {[%emt 00:00:01]
[%clk 00:01:24]} 36. R6xd4 {[%emt 00:00:07] [%clk 00:01:12]} Rxa5 {[%emt
00:00:01] [%clk 00:01:25]} 37. Rb4 {[%emt 00:00:02] [%clk 00:01:12]} f4 {[%emt
00:00:15] [%clk 00:01:12]} 38. Rxe4 {[%emt 00:00:03] [%clk 00:01:10]} 1-0

[Site "Europe Echecs"]

[Event "Championnat d'Europe de Blitz"]
[Date "2024.12.09"]
[White "Chaerle, Josse"]
[Black "Samunenkov, Ihor"]
[WhiteElo "2024"]
[BlackElo "2543"]
[Round "1.50"]
[Result "0-1"]
[TimeControl "180+2"]

1. Nf3 {[%clk 00:03:02]} d5 {[%emt 00:00:04] [%clk 00:03:00]} 2. g3 {[%emt
00:00:01] [%clk 00:03:03]} Nf6 {[%emt 00:00:09] [%clk 00:02:54]} 3. Bg2 {[%clk
00:03:04]} e6 {[%emt 00:00:02] [%clk 00:02:53]} 4. O-O {[%emt 00:00:03] [%clk
00:03:03]} Be7 {[%emt 00:00:02] [%clk 00:02:53]} 5. d3 {[%emt 00:00:01] [%clk
00:03:03]} O-O {[%emt 00:00:04] [%clk 00:02:52]} 6. Nbd2 {[%clk 00:03:04]} a5
{[%emt 00:00:04] [%clk 00:02:50]} 7. e4 {[%emt 00:00:19] [%clk 00:02:47]} a4
{[%emt 00:00:02] [%clk 00:02:50]} 8. a3 {[%emt 00:00:16] [%clk 00:02:34]} c5
{[%emt 00:00:08] [%clk 00:02:43]} 9. Re1 {[%emt 00:00:24] [%clk 00:02:12]} Nc6
{[%emt 00:00:03] [%clk 00:02:42]} 10. exd5 {[%emt 00:00:25] [%clk 00:01:49]}
Nxd5 {[%emt 00:00:16] [%clk 00:02:28]} 11. Nc4 {[%emt 00:00:12] [%clk 00:01:39]}
Qc7 {[%emt 00:00:37] [%clk 00:01:53]} 12. Nce5 {[%emt 00:00:13] [%clk 00:01:28]}
Bd7 {[%emt 00:00:10] [%clk 00:01:46]} 13. c4 {[%emt 00:00:25] [%clk 00:01:04]}
Nf6 {[%emt 00:00:12] [%clk 00:01:35]} 14. Bf4 {[%emt 00:00:05] [%clk 00:01:02]}
Bd6 {[%emt 00:00:06] [%clk 00:01:31]} 15. d4 {[%emt 00:00:35] [%clk 00:00:30]}
cxd4 {[%emt 00:00:13] [%clk 00:01:19]} 16. Nxd7 {[%emt 00:00:20] [%clk
00:00:12]} Nxd7 {[%emt 00:00:05] [%clk 00:01:15]} 17. Nxd4 {[%emt 00:00:04]
[%clk 00:00:11]} Nxd4 {[%emt 00:00:22] [%clk 00:00:55]} 18. Qxd4 {[%emt
00:00:02] [%clk 00:00:11]} e5 {[%emt 00:00:01] [%clk 00:00:56]} 19. Qd1 {[%emt
00:00:15]} 0-1

[Site "Europe Echecs"]

[Event "Championnat d'Europe de Blitz"]
[Date "2024.12.09"]
[White "Grigoriants, Sergey"]
[Black "Dema, Ramiz"]
[WhiteElo "2542"]
[BlackElo "2033"]
[Round "1.51"]
[Result "1-0"]
[TimeControl "180+2"]

1. e4 {[%emt 00:00:01] [%clk 00:03:01]} e6 {[%emt 00:00:02] [%clk 00:03:03]} 2.
d4 {[%emt 00:00:02] [%clk 00:03:00]} d5 {[%emt 00:00:01] [%clk 00:03:04]} 3. Nc3
{[%emt 00:00:05] [%clk 00:02:58]} Nf6 {[%emt 00:00:07] [%clk 00:02:59]} 4. e5
{[%emt 00:00:05] [%clk 00:02:55]} Nfd7 {[%emt 00:00:09] [%clk 00:02:52]} 5. f4
{[%emt 00:00:03] [%clk 00:02:53]} c5 {[%emt 00:00:04] [%clk 00:02:50]} 6. Nf3
{[%emt 00:00:01] [%clk 00:02:54]} Nc6 {[%emt 00:00:03] [%clk 00:02:50]} 7. Be3
{[%emt 00:00:02] [%clk 00:02:54]} Be7 {[%emt 00:00:10] [%clk 00:02:41]} 8. Qd2
{[%emt 00:00:14] [%clk 00:02:42]} O-O {[%emt 00:00:13] [%clk 00:02:30]} 9. Be2
{[%emt 00:00:27] [%clk 00:02:17]} cxd4 {[%emt 00:00:12] [%clk 00:02:20]} 10.
Nxd4 {[%emt 00:00:02] [%clk 00:02:18]} Nxd4 {[%emt 00:00:08] [%clk 00:02:14]}
11. Bxd4 {[%emt 00:00:02] [%clk 00:02:19]} Bc5 {[%emt 00:00:10] [%clk 00:02:06]}
12. O-O-O {[%emt 00:00:11] [%clk 00:02:09]} Bxd4 {[%emt 00:00:03] [%clk
00:02:04]} 13. Qxd4 {[%emt 00:00:02] [%clk 00:02:10]} a6 {[%emt 00:00:18] [%clk
00:01:48]} 14. h4 {[%emt 00:00:30] [%clk 00:01:43]} f5 {[%emt 00:00:01] [%clk
00:01:48]} 15. g4 {[%emt 00:00:13] [%clk 00:01:32]} Kh8 {[%emt 00:00:18] [%clk
00:01:33]} 16. gxf5 {[%emt 00:00:05] [%clk 00:01:29]} Rxf5 {[%emt 00:00:05]
[%clk 00:01:29]} 17. Bg4 {[%emt 00:00:01] [%clk 00:01:29]} Qf8 {[%emt 00:00:08]
[%clk 00:01:24]} 18. Bxf5 {[%emt 00:00:05] [%clk 00:01:27]} Qxf5 {[%emt
00:00:02] [%clk 00:01:23]} 19. Kb1 {[%emt 00:00:25] [%clk 00:01:04]} b6 {[%emt
00:00:02] [%clk 00:01:23]} 20. Ne2 {[%emt 00:00:06] [%clk 00:01:00]} Nc5 {[%emt
00:00:07] [%clk 00:01:18]} 21. Ng3 {[%emt 00:00:06] [%clk 00:00:56]} Qf7 {[%emt
00:00:16] [%clk 00:01:05]} 22. Rhf1 {[%emt 00:00:07] [%clk 00:00:50]} g6 {[%emt
00:00:05] [%clk 00:01:02]} 23. h5 {[%emt 00:00:01] [%clk 00:00:51]} Ra7 {[%emt
00:00:06] [%clk 00:00:59]} 24. hxg6 {[%emt 00:00:15] [%clk 00:00:37]} Qxg6
{[%emt 00:00:06] [%clk 00:00:55]} 25. Rg1 {[%emt 00:00:01] [%clk 00:00:38]} Rg7
{[%emt 00:00:12] [%clk 00:00:45]} 26. a3 {[%emt 00:00:07] [%clk 00:00:33]} a5
{[%emt 00:00:11] [%clk 00:00:36]} 27. Ne2 {[%emt 00:00:13] [%clk 00:00:22]} Qf7
{[%emt 00:00:06] [%clk 00:00:32]} 28. Rxg7 {[%emt 00:00:02] [%clk 00:00:22]}
Qxg7 {[%emt 00:00:01] [%clk 00:00:33]} 29. f5 {[%emt 00:00:07] [%clk 00:00:17]}
exf5 {[%emt 00:00:23] [%clk 00:00:12]} 30. Rg1 {[%clk 00:00:19]} Ne6 {[%emt
00:00:08] [%clk 00:00:07]} 31. Qxb6 {[%emt 00:00:12] [%clk 00:00:09]} Qxe5
{[%emt 00:00:06] [%clk 00:00:00]} 32. Qc6 {[%emt 00:00:02] [%clk 00:00:09]} 1-0

[Site "Europe Echecs"]